bitfinex-derivatives/quotes_ETHF0:USTF0_20241005
["timestamp","ask_amount","ask_price","bid_price","bid_amount"]
[1728140923153,4.5659,2412.2,2411.8,0.8056]
[1728140923351,0.2902,2412.0,2411.8,0.8056]
[1728140923753,0.29021,2411.9,2411.8,0.8056]
[1728140934166,0.68051,2411.9,2411.8,0.8056]
[1728140938968,0.3903,2411.9,2411.7,0.4287]
[1728140939273,0.29022,2411.8,2411.7,0.4287]
[1728140939462,0.3903,2411.9,2411.7,0.4287]
[1728140939665,0.29022,2411.8,2411.7,0.4287]
[1728140940972,0.68051,2411.9,2411.7,0.4287]
[1728140941276,0.68051,2411.9,2411.5,0.8072]
[1728140941277,0.29024,2411.7,2411.5,0.8072]
[1728140941475,0.4174,2411.6,2411.5,0.8072]
[1728140941776,0.4174,2411.6,2411.5,1.09746]
[1728140942378,0.4174,2411.6,2411.5,0.8072]
[1728140942572,0.70764,2411.6,2411.5,0.8072]
[1728140942773,2.19764,2411.6,2411.5,0.8072]
[1728140944266,1.9074,2411.6,2411.5,0.8072]
[1728140944473,1.49,2411.8,2411.5,0.8072]
[1728140944673,1.78023,2411.8,2411.6,0.29024]
[1728140945482,1.78023,2411.8,2411.5,1.09745]
[1728140948182,5.41201,2411.9,2411.6,0.29024]
[1728140948375,0.94,2412.0,2411.6,1.49]
[1728140948677,1.2302,2412.0,2411.6,1.78024]
[1728140949082,0.4288,2412.1,2411.6,1.49]
[1728140949277,0.71899,2412.1,2411.7,0.29023]
[1728140949479,0.71899,2412.1,2411.8,0.71212]
[1728140949682,0.71899,2412.1,2411.9,0.3908]
[1728140949981,0.4288,2412.1,2411.9,1.1009]
[1728140950382,0.4288,2412.1,2411.9,0.8107]
[1728140950687,11.61535,2412.5,2411.9,6.4463]
[1728140950688,12.38,2412.5,2411.9,6.4463]
[1728140950981,2.19034,2412.5,2412.1,0.29018]
[1728140951183,2.19034,2412.5,2412.2,0.4219]
[1728140951376,1.9002,2412.5,2412.3,0.3908]
[1728140951581,1.9002,2412.5,2412.3,0.8107]
[1728140951582,0.29015,2412.4,2412.3,0.8107]
[1728140951877,0.70034,2412.5,2412.3,0.8107]
[1728140952079,0.4102,2412.5,2412.3,0.8107]
[1728140952281,0.70034,2412.5,2412.3,0.8107]
[1728140953378,0.29015,2412.4,2412.3,0.8107]
[1728140957074,4.1456,2412.4,2412.0,1.08610895]
[1728140957279,1.9002,2412.5,2411.9,0.8179]
[1728140957280,0.2902,2412.0,2411.9,0.8179]
[1728140957480,0.2902,2412.0,2411.6,1.37634895]
[1728140957683,0.424,2411.9,2411.7,0.8179]
[1728140957883,0.424,2411.9,2411.7,1.10813]
[1728140958687,4.75813,2412.3,2411.7,2.3079]
[1728140958688,4.9717,2412.3,2411.7,2.3079]
[1728140958897,0.4259,2412.2,2411.9,0.29021]
[1728140959189,0.71608,2412.2,2412.0,0.392]
[1728140959391,0.71608,2412.2,2412.1,0.7965]
[1728140965079,1.9159,2412.2,2412.0,0.392]
[1728140965285,0.29018,2412.1,2412.0,0.392]
[1728140966181,2.20608,2412.2,2412.0,0.392]
[1728140966379,0.29018,2412.1,2412.0,0.392]
[1728140967088,2.20608,2412.2,2412.0,0.392]
[1728140967780,1.9159,2412.2,2411.9,0.4143]
[1728140967976,1.49,2412.0,2411.7,1.49160895]
[1728140968183,1.49,2411.8,2411.7,1.08610895]
[1728140968688,1.49,2411.8,2411.6,1.08610895]
[1728140969284,1.78022,2411.8,2411.5,2.28900895]
[1728140969983,0.29024,2411.7,2411.5,2.28900895]
[1728140970176,1.49,2411.7,2411.5,2.28900895]
[1728140970380,0.4027,2411.6,2411.5,2.28900895]
[1728140970579,0.4027,2411.6,2411.5,1.2029]
[1728140971393,0.69294,2411.6,2411.5,1.2029]
[1728140971588,0.29026,2411.5,2411.4,1.08610895]
[1728140971786,9.259,2411.5,2411.2,1.08610895]
[1728140971982,9.259,2411.5,2411.1,1.08610895]
[1728140971983,1.78028,2411.3,2411.1,1.08610895]
[1728140972185,1.78028,2411.3,2411.0,1.08610895]
[1728140972387,0.4027,2411.2,2411.0,1.08610895]
[1728140972889,0.4027,2411.2,2411.1,0.3928]
[1728140974093,0.69299,2411.2,2411.1,0.3928]
[1728140976686,0.4027,2411.2,2411.1,0.3928]
[1728140976986,3.2078,2411.5,2411.2,0.29028]
[1728140977190,3.2078,2411.5,2411.1,1.8828]
[1728140977191,0.395,2411.5,2411.3,0.69728]
[1728140977486,0.939,2411.8,2411.4,0.3971]
[1728140977795,1.78023,2411.7,2411.4,0.68736]
[1728140977994,1.78023,2411.7,2411.5,0.4123]
[1728140978497,1.49,2411.7,2411.5,0.4123]
[1728140979298,1.49,2411.7,2411.5,0.70256]
[1728140979887,1.49,2411.7,2411.5,0.4123]
[1728140981192,1.78024,2411.7,2411.5,0.4123]
[1728140981595,1.49,2411.7,2411.5,0.4123]
[1728140981894,1.78023,2411.7,2411.5,0.4123]
[1728140982890,1.78024,2411.6,2411.5,0.4123]
[1728140983789,1.49,2411.6,2411.5,0.4123]
[1728140986015,1.49,2411.6,2411.4,0.3971]
[1728140986016,2.61585,2411.6,2411.4,0.3971]
[1728140986700,3.05123,2411.6,2411.1,0.096]
[1728140986997,1.49,2411.2,2411.1,1.257]
[1728140987597,1.9061,2411.2,2411.1,1.257]
[1728140987799,1.9061,2411.2,2410.8,4.29390895]
[1728140987800,0.29031,2411.1,2410.8,4.29390895]
[1728140988003,1.49,2411.0,2410.8,0.29034]
[1728140988297,1.49,2411.0,2410.6,2.34310895]
[1728140988500,1.49,2411.0,2410.8,0.29033]
[1728140988705,2.18861,2411.1,2410.8,0.29033]
[1728140991213,2.18861,2411.1,2410.9,0.29033]
[1728140991506,1.78032,2411.0,2410.6,0.29036]
[1728140991696,3.6012,2410.9,2410.7,0.29035]
[1728140991896,3.49813,2410.9,2410.7,0.29035]
[1728140992205,0.29035,2410.7,2410.5,0.29037]
[1728140992605,2.59855,2410.8,2410.5,0.29037]
[1728140993708,1.49,2410.6,2410.2,3.3038]
[1728140993907,0.8182,2410.8,2410.2,3.49821]
[1728140993908,1.49,2410.3,2410.2,3.49821]
[1728140994300,1.49,2410.3,2410.2,3.2078]
[1728140994609,0.29041,2410.2,2409.8,1.47256895]
[1728140994909,1.49,2409.9,2409.8,1.37656895]
[1728140995205,1.49,2409.9,2409.8,0.29046]
[1728140995706,0.29047,2409.8,2409.5,1.37659895]
[1728140996010,1.49,2409.7,2409.5,0.29049]
[1728140996204,0.8445,2409.8,2409.3,4.0203]
[1728140996506,1.49,2409.5,2409.3,3.49832]
[1728140996708,1.49,2409.5,2409.4,0.29051]
[1728140997604,0.29049,2409.6,2409.3,0.29052]
[1728140997806,3.53048,2409.7,2409.4,0.29051]
[1728140998405,3.24,2409.7,2409.4,0.29051]
[1728140998907,4.179,2409.7,2409.4,0.29051]
[1728140999107,0.4247,2409.8,2409.6,0.29048]
[1728140999311,1.3637,2409.8,2409.6,0.29048]
[1728140999503,1.3637,2409.8,2409.3,3.2078]
[1728140999709,0.4247,2409.8,2409.4,0.29051]
[1728140999909,0.4247,2409.8,2409.6,0.29048]
[1728141000407,0.4247,2409.8,2409.3,3.2078]
[1728141000602,0.939,2409.8,2409.3,3.2078]
[1728141000806,0.939,2409.8,2409.6,0.29048]
[1728141001910,0.3876,2410.2,2409.8,0.29045]
[1728141002107,0.3876,2410.2,2409.9,0.69335]
[1728141002314,1.3266,2410.2,2409.9,0.4029]
[1728141002612,3.53041,2410.3,2409.9,0.4029]
[1728141002810,3.6036,2410.4,2409.9,0.4029]
[1728141003016,0.939,2410.3,2410.0,0.29043]
[1728141004020,1.2294,2410.3,2409.9,0.4029]
[1728141004322,0.939,2410.3,2409.9,0.69334]
[1728141004919,4.179,2410.3,2409.9,0.69334]
[1728141005719,3.24,2410.3,2410.0,0.29043]
[1728141006113,3.24,2410.3,2409.9,0.4029]
[1728141006322,3.24,2410.3,2409.9,0.69334]
[1728141007823,3.5304,2410.3,2409.9,0.69334]
[1728141008326,3.24,2410.3,2409.9,0.69334]
[1728141008829,3.24,2410.3,2410.0,0.29044]
[1728141009728,3.24,2410.3,2409.7,0.7888]
[1728141010031,3.24,2410.1,2409.8,0.29046]
[1728141011722,3.53043,2410.1,2409.8,0.29046]
[1728141012028,3.53043,2410.1,2409.7,1.2015]
[1728141012226,3.53043,2410.1,2409.7,1.49197]
[1728141012421,3.53043,2410.1,2409.8,0.29046]
[1728141012724,3.53043,2410.1,2409.7,1.49197]
[1728141013425,3.53043,2410.1,2409.8,0.29046]
[1728141013822,3.53043,2410.1,2409.7,1.49197]
[1728141015024,3.24,2410.1,2409.7,1.2015]
[1728141015328,0.29044,2410.0,2409.7,1.2015]
[1728141016329,0.70234,2410.0,2409.7,1.49197]
[1728141017129,0.4119,2410.0,2409.7,1.49197]
[1728141018021,0.70234,2410.0,2409.7,1.49197]
[1728141018826,0.4119,2410.0,2409.7,1.49197]
[1728141019931,0.70234,2410.0,2409.7,1.49197]
[1728141021122,0.4119,2410.0,2409.7,1.49197]
[1728141021629,0.70234,2410.0,2409.7,1.49197]
[1728141022723,0.70234,2410.0,2409.7,1.2015]
[1728141023221,1.49,2409.9,2409.7,1.2015]
[1728141023421,1.49,2409.9,2409.5,3.3038]
[1728141023422,1.78046,2409.8,2409.5,3.59429]
[1728141023623,1.49,2409.8,2409.5,3.2078]
[1728141023928,1.78047,2409.8,2409.5,3.2078]
[1728141024829,1.78049,2409.6,2409.5,3.2078]
[1728141025931,1.49,2409.6,2409.5,3.2078]
[1728141026231,1.78049,2409.6,2409.3,0.29052]
[1728141026431,1.9149,2409.5,2409.1,1.2106]
[1728141026630,1.9149,2409.5,2409.2,0.29052]
[1728141026828,2.2054,2409.5,2409.1,5.94100819]
[1728141027030,2.2054,2409.5,2409.2,0.29053]
[1728141027532,1.9149,2409.5,2409.2,0.29053]
[1728141027734,0.29051,2409.4,2409.2,0.29053]
[1728141028634,2.2054,2409.5,2409.3,0.29052]
[1728141029036,0.4249,2409.5,2409.3,0.29052]
[1728141029237,0.719,2410.1,2409.1,7.14047819]
[1728141029238,3.2078,2410.0,2409.4,8.8482]
[1728141029541,1.23546,2409.9,2409.6,0.29048]
[1728141029735,1.23546,2409.9,2409.5,0.799]
[1728141029939,1.23546,2409.9,2409.6,0.3872]
[1728141030143,1.8846,2410.0,2409.8,0.29045]
[1728141030433,0.72592,2410.6,2409.9,1.49]
[1728141030434,1.49,2410.4,2409.9,1.49]
[1728141030640,1.49,2410.4,2410.0,0.68043]
[1728141030641,2.435,2410.4,2410.0,0.68043]
[1728141030840,1.78039,2410.4,2410.0,0.68043]
[1728141031044,2.435,2410.4,2410.0,0.68043]
[1728141031635,2.435,2410.4,2410.0,0.39]
[1728141031636,0.945,2410.4,2410.0,0.39]
[1728141031838,1.23539,2410.4,2410.0,0.39]
[1728141033644,0.29039,2410.4,2410.0,0.39]
[1728141033839,1.23539,2410.4,2410.0,0.39]
[1728141034535,3.24,2410.3,2410.0,0.39]
[1728141035140,3.24,2410.3,2410.0,0.68043]
[1728141038638,3.24,2410.3,2410.0,0.39]
[1728141040944,3.24,2410.3,2409.9,1.78554895]
[1728141041145,3.5304,2410.3,2409.9,1.78554895]
[1728141041441,3.24,2410.3,2409.9,1.78554895]
[1728141042140,3.24,2410.3,2409.9,1.49510895]
[1728141042346,3.24,2410.3,2410.0,0.29044]
[1728141042741,3.24,2410.3,2409.9,1.78554895]
[1728141044147,3.5304,2410.3,2409.9,1.78554895]
[1728141044344,3.9303,2410.3,2409.9,1.78554895]
[1728141045953,3.6399,2410.3,2410.0,0.29044]
[1728141047246,3.6399,2410.3,2409.9,1.49510895]
[1728141047652,3.6399,2410.3,2410.0,0.29043]
[1728141049450,3.6399,2410.3,2409.9,1.78554895]
[1728141051058,3.6399,2410.3,2410.0,0.29043]
[1728141051956,3.93031,2410.3,2409.9,1.49510895]
[1728141052149,3.93031,2410.3,2409.9,1.78555895]
[1728141053657,1.49,2410.1,2409.9,1.78555895]
[1728141054055,0.4108,2410.0,2409.9,1.78555895]
[1728141055152,0.4108,2410.0,2409.9,1.49510895]
[1728141055352,0.4108,2410.0,2409.9,1.08610895]
[1728141055557,0.8346,2410.0,2409.9,1.37655895]
[1728141059757,0.8346,2410.0,2409.9,0.29045]
[1728141059964,0.8346,2410.0,2409.9,1.37758544]
[1728141060355,0.8346,2410.0,2409.9,1.08713544]
[1728141060560,0.8346,2410.0,2409.9,1.37758544]
[1728141062356,0.8346,2410.0,2409.9,0.29045]
[1728141063964,0.8346,2410.0,2409.7,0.8307]
[1728141064265,1.49,2409.8,2409.7,1.12117]
[1728141065168,1.49,2409.8,2409.7,0.71627]
[1728141067566,1.78046,2409.8,2409.7,0.4258]
[1728141067770,1.49,2409.8,2409.7,0.71627]
[1728141069065,1.12504,2410.0,2409.7,0.4258]
[1728141069271,1.49,2409.9,2409.8,0.29046]
[1728141070268,1.49,2409.9,2409.8,0.71546]
[1728141071772,0.8346,2410.0,2409.8,0.425]
[1728141071773,0.4108,2410.0,2409.8,0.425]
[1728141071972,0.4108,2410.0,2409.9,0.29045]
[1728141074378,1.49,2410.1,2409.9,0.29045]
[1728141074565,1.49,2410.0,2409.8,1.08751067]
[1728141074770,1.49,2410.0,2409.9,0.29045]
[1728141075379,5.93004,2410.0,2409.8,1.08751067]
[1728141075580,0.4077,2409.9,2409.8,1.08751067]
[1728141075777,1.78044,2410.0,2409.8,2.53436817]
[1728141076082,2.18814,2410.0,2409.8,1.08751067]
[1728141076274,1.8977,2410.0,2409.8,1.08751067]
[1728141076476,2.18815,2410.0,2409.7,1.37798067]
[1728141076683,1.49,2409.8,2409.7,1.37798067]
[1728141076887,1.49,2409.8,2409.7,2.82495252]
[1728141077183,0.29049,2409.6,2409.5,1.08751067]
[1728141077476,0.29049,2409.6,2409.4,1.08751067]
[1728141077477,1.49,2409.6,2409.4,1.08751067]
[1728141077778,0.2905,2409.5,2409.4,0.98666601]
[1728141077979,0.2905,2409.5,2409.2,2.17502135]
[1728141077980,0.29052,2409.3,2409.2,1.088323]
[1728141078277,0.29055,2409.1,2408.9,1.088323]
[1728141078474,0.4179,2409.0,2408.9,1.088323]
[1728141079183,0.4179,2409.0,2408.8,0.29058]
[1728141079184,0.4179,2409.0,2408.8,1.088323]
[1728141079476,1.49,2408.9,2408.6,4.296123]
[1728141079673,1.49,2408.7,2408.6,4.586723]
[1728141079870,1.49,2408.7,2408.6,1.378923]
[1728141080078,1.49,2408.7,2408.6,1.088323]
[1728141080275,1.49,2408.7,2408.4,1.088323]
[1728141080481,1.3939,2409.0,2408.4,1.088323]
[1728141080482,1.49,2408.5,2408.4,1.378953]
[1728141080791,1.49,2408.5,2408.3,1.088323]
[1728141081080,1.49,2408.4,2408.2,3.49845]
[1728141081475,4.15385,2408.9,2408.5,0.29061]
[1728141081476,0.976,2408.7,2408.5,0.29061]
[1728141081777,0.976,2408.7,2408.6,0.2906]
[1728141081778,1.49,2408.7,2408.6,0.2906]
[1728141081983,0.976,2408.8,2408.2,3.2078]
[1728141081984,1.49,2408.6,2408.4,0.29063]
[1728141082180,2.18702,2408.6,2408.2,3.49845]
[1728141082388,2.18702,2408.6,2408.2,3.2078]
[1728141082389,1.49,2408.5,2408.2,3.2078]
[1728141082678,1.49,2408.5,2408.3,0.29064]
[1728141083481,0.976,2408.8,2408.5,0.29062]
[1728141083777,0.976,2408.8,2408.2,3.2078]
[1728141083778,4.216,2408.8,2408.2,3.2078]
[1728141083982,4.216,2408.8,2408.4,0.29062]
[1728141083983,4.50659,2408.8,2408.4,0.29062]
[1728141084880,3.24,2408.8,2408.2,3.2078]
[1728141085086,4.216,2408.8,2408.5,0.29061]
[1728141085585,3.53058,2408.8,2408.4,0.29062]
[1728141085882,3.24,2408.8,2408.5,0.4208]
[1728141086079,3.24,2408.8,2408.5,0.71141]
[1728141087581,3.24,2408.8,2408.5,0.4208]
[1728141087779,3.53058,2408.8,2408.5,0.4208]
[1728141091794,3.24,2408.8,2408.5,0.4208]
[1728141091989,3.24,2408.8,2408.6,0.7182]
[1728141092994,3.24,2408.8,2408.6,0.4276]
[1728141093392,3.24,2408.8,2408.6,0.7182]
[1728141096996,3.24,2408.8,2408.6,1.1174]
[1728141097393,0.397,2408.9,2408.6,0.8268]
[1728141097596,4.92446,2409.0,2408.7,0.29059]
[1728141098095,4.6339,2409.0,2408.7,0.29059]
[1728141099697,4.6339,2409.0,2408.6,0.8268]
[1728141099894,3.24,2408.7,2408.6,0.8268]
[1728141101492,0.29061,2408.6,2408.3,0.096]
[1728141101795,3.24,2408.4,2408.3,0.29064]
[1728141102688,3.24,2408.4,2408.3,4.44264]
[1728141102889,3.24,2408.6,2408.3,4.152]
[1728141103090,3.24,2408.7,2408.6,0.29061]
[1728141104396,3.24,2408.7,2408.4,0.29062]
[1728141104397,3.5306,2408.7,2408.4,0.29062]
[1728141104597,3.24,2408.4,2408.2,4.0171]
[1728141104803,3.24,2408.4,2408.3,8.81621483]
[1728141104989,3.24,2408.4,2408.3,9.10685483]
[1728141105190,3.24,2408.4,2408.3,13.25885483]
[1728141105593,1.5,2408.4,2408.3,13.25885483]
[1728141107900,1.5,2408.4,2408.3,16.46665483]
[1728141109007,1.5,2408.4,2408.3,13.25885483]
[1728141109209,1.5,2408.4,2408.3,16.46665483]
[1728141111508,1.5,2408.4,2408.3,13.25885483]
[1728141111801,1.5,2408.4,2408.3,16.46665483]
[1728141112106,1.5,2408.4,2408.3,12.31465483]
[1728141112695,1.79063,2408.4,2408.3,3.2078]
[1728141112907,5.94263,2408.4,2408.0,3.2078]
[1728141113106,1.5,2408.1,2408.0,3.2078]
[1728141113307,3.6032,2408.6,2408.0,3.2078]
[1728141113308,0.29064,2408.3,2408.1,0.29066]
[1728141113611,3.6032,2408.6,2408.1,0.29066]
[1728141113612,1.5,2408.2,2408.1,0.29066]
[1728141113805,1.5,2408.2,2408.1,0.67946]
[1728141116797,1.5,2408.2,2408.1,0.3888]
[1728141116798,1.79065,2408.2,2408.1,0.3888]
[1728141116997,1.5,2408.2,2408.1,0.67947]
[1728141117411,1.79065,2408.2,2408.1,0.3888]
[1728141117606,1.9266,2408.2,2408.1,0.67947]
[1728141118106,0.29069,2407.9,2407.8,0.096]
[1728141118306,1.79069,2407.9,2407.7,3.2078]
[1728141118508,1.79069,2407.9,2407.7,3.49851]
[1728141118905,1.79069,2407.9,2407.7,3.89201]
[1728141119100,0.29069,2407.9,2407.7,3.89201]
[1728141119305,1.5,2407.8,2407.7,3.89201]
[1728141119810,1.5,2407.8,2407.7,8.04561]
[1728141120306,1.5,2407.8,2407.7,7.7549]
[1728141120512,1.5,2407.8,2407.7,3.89201]
[1728141123104,1.5,2407.8,2407.7,4.980333]
[1728141124207,1.5,2407.8,2407.7,10.57382849]
[1728141124509,1.5,2407.8,2407.7,9.133933]
[1728141125104,1.5,2407.8,2407.7,10.57361516]
[1728141125310,3.6344,2408.2,2408.0,0.29068]
[1728141125511,1.5,2408.1,2408.0,0.29068]
[1728141125908,1.5,2408.1,2407.8,1.08716946]
[1728141126113,3.92505,2408.2,2407.9,0.29068]
[1728141126605,3.6344,2408.2,2407.9,0.29068]
[1728141126807,0.29067,2408.1,2407.9,0.29068]
[1728141127011,1.5,2408.0,2407.9,0.29068]
[1728141129806,0.4266,2408.2,2408.1,0.29067]
[1728141130015,1.9266,2408.2,2408.1,0.29067]
[1728141130514,1.9266,2408.2,2408.1,4.83757]
[1728141133007,1.9266,2408.2,2408.1,0.68477]
[1728141134815,4.4486,2408.7,2408.1,10.42746684]
[1728141134816,4.2288,2408.7,2408.1,10.42746684]
[1728141135012,1.5,2408.3,2408.2,0.71245]
[1728141135409,1.5,2408.3,2408.2,4.86445]
[1728141135719,1.5,2408.5,2408.4,0.29063]
[1728141136106,1.5,2408.5,2408.4,4.44263]
[1728141137810,1.5,2408.5,2408.4,0.29063]
[1728141138519,1.5,2408.5,2408.4,4.44263]
[1728141138714,1.5,2408.5,2408.4,4.87083]
[1728141139831,1.5,2408.5,2408.4,0.71883]
[1728141140920,1.5,2408.5,2408.3,4.58560946]
[1728141141126,0.29063,2408.4,2408.3,3.2078]
[1728141144023,0.29063,2408.4,2408.1,1.37783946]
[1728141144222,1.5,2408.2,2408.1,1.37783946]
[1728141144413,1.5,2408.2,2408.1,6.0249972]
[1728141144622,1.9073,2408.2,2408.1,6.0249972]
[1728141145227,1.9073,2408.2,2408.1,6.5677107]
[1728141146022,1.9073,2408.2,2408.1,4.93782774]
[1728141146225,1.9073,2408.2,2408.1,6.02486393]
[1728141146927,1.9073,2408.2,2408.1,4.58550619]
[1728141150428,1.9073,2408.2,2408.1,6.02536086]
[1728141150628,1.9073,2408.2,2408.1,6.02536479]
[1728141151023,1.9073,2408.2,2408.1,4.58550619]
[1728141152627,1.9073,2408.2,2408.1,6.0254873]
[1728141152823,1.9073,2408.2,2408.1,2.8176873]
[1728141153023,1.9073,2408.2,2408.1,2.8176905]
[1728141153522,1.9073,2408.2,2408.1,1.37770619]
[1728141154124,1.9073,2408.2,2408.1,0.29067]
[1728141159233,2.19796,2408.2,2408.1,0.29067]
[1728141160040,2.19796,2408.2,2408.0,1.49183619]
[1728141160336,2.19796,2408.2,2408.0,1.78250619]
[1728141160531,2.19796,2408.2,2408.0,0.69547]
[1728141160726,2.19796,2408.2,2408.1,0.29067]
[1728141160928,1.9073,2408.2,2408.1,0.29067]
[1728141161126,2.19795,2408.2,2408.1,0.29067]
[1728141161339,1.9073,2408.2,2408.1,0.29067]
[1728141163632,2.19795,2408.2,2408.1,0.29067]
[1728141163837,2.19796,2408.2,2408.0,1.78250619]
[1728141164034,2.19796,2408.2,2408.0,0.69547]
[1728141164234,2.19796,2408.2,2408.1,0.29067]
[1728141164434,1.9073,2408.2,2408.1,0.29067]
[1728141165134,1.9073,2408.2,2408.1,1.37770619]
[1728141165135,1.5,2408.2,2408.1,1.37770619]
[1728141169636,1.5,2408.2,2408.1,2.81864313]
[1728141170336,1.5,2408.2,2408.1,2.81876016]
[1728141170739,1.79065,2408.2,2408.1,1.37770619]
[1728141171036,1.5,2408.2,2408.1,2.81876955]
[1728141171433,1.5,2408.2,2408.1,1.37770619]
[1728141171746,1.5,2408.2,2408.1,2.81887431]
[1728141172542,1.5,2408.2,2408.1,1.73183812]
[1728141173337,1.5,2408.2,2408.1,3.36172108]
[1728141173538,1.5,2408.2,2408.1,3.87061979]
[1728141173839,1.5,2408.2,2408.1,3.87065715]
[1728141174045,1.5,2408.2,2408.1,8.02345715]
[1728141174245,1.5,2408.2,2408.1,10.80784675]
[1728141174837,1.5,2408.2,2408.1,10.29891068]
[1728141175140,1.5,2408.2,2408.1,10.807886]
[1728141175539,1.5,2408.2,2408.1,12.98290735]
[1728141176243,1.5,2408.2,2408.1,6.655086]
[1728141176453,1.5,2408.2,2408.1,10.80833811]
[1728141176745,1.5,2408.2,2408.1,6.65553811]
[1728141176948,1.5,2408.2,2408.1,12.98335946]
[1728141177149,1.5,2408.2,2408.1,10.80833811]
[1728141178148,1.5,2408.2,2408.1,6.65553811]
[1728141178348,1.5,2408.2,2408.1,10.29936279]
[1728141178542,1.5,2408.2,2408.1,10.80838775]
[1728141179350,1.5,2408.2,2408.1,8.8306091]
[1728141179545,1.5,2408.2,2408.1,10.80838775]
[1728141179948,1.5,2408.2,2408.1,8.8306091]
[1728141180343,1.5,2408.2,2408.1,6.65558775]
[1728141180550,1.5,2408.2,2408.1,10.80838775]
[1728141180746,1.5,2408.2,2408.1,12.98339701]
[1728141181049,1.5,2408.2,2408.1,7.16458945]
[1728141181246,1.5,2408.2,2408.1,6.65556449]
[1728141182351,1.5,2408.2,2408.1,8.83058584]
[1728141182547,1.5,2408.2,2408.1,10.80836449]
[1728141182846,1.5,2408.2,2408.1,6.65556449]
[1728141183048,1.5,2408.2,2408.1,8.28864539]
[1728141183839,1.5,2408.2,2408.1,7.7796316]
[1728141184450,1.5,2408.2,2408.1,8.28874289]
[1728141184653,1.5,2408.2,2408.1,8.28917663]
[1728141185553,1.5,2408.2,2408.1,6.65609573]
[1728141185949,1.5,2408.2,2408.1,8.28971099]
[1728141186148,1.5,2408.2,2408.1,6.65609573]
[1728141186345,1.5,2408.2,2408.1,7.05149573]
[1728141187350,1.5,2408.2,2408.1,6.54238444]
[1728141187555,1.5,2408.2,2408.1,7.05169783]
[1728141187752,1.5,2408.2,2408.1,7.56102263]
[1728141188051,1.5,2408.2,2408.1,8.0703532]
[1728141189559,1.5,2408.2,2408.1,8.07087314]
[1728141189853,1.5,2408.2,2408.1,8.07087559]
[1728141190355,1.5,2408.2,2408.1,8.58275646]
[1728141190652,1.5,2408.2,2408.1,10.75777781]
[1728141190847,1.5,2408.2,2408.1,8.58275646]
[1728141191247,1.5,2408.2,2408.1,10.75777781]
[1728141191645,1.5,2408.2,2408.1,8.07087559]
[1728141192352,1.5,2408.2,2408.1,10.75784888]
[1728141192752,1.5,2408.2,2408.1,8.58282753]
[1728141193161,1.5,2408.2,2408.1,7.56418934]
[1728141193353,1.5,2408.2,2408.1,7.56420213]
[1728141193654,1.5,2408.2,2408.1,7.0522923]
[1728141193855,1.5,2408.2,2408.1,6.54290683]
[1728141194158,1.5,2408.2,2408.1,7.05230421]
[1728141194352,1.5,2408.2,2408.1,5.60973994]
[1728141194657,1.5,2408.2,2408.1,7.05243315]
[1728141194850,1.5,2408.2,2408.1,7.5643473]
[1728141195050,1.5,2408.2,2408.1,7.05243315]
[1728141195251,1.5,2408.2,2408.1,6.76176315]
[1728141195458,2.62125,2408.2,2408.1,8.29127627]
[1728141197256,2.62125,2408.2,2408.1,8.00063083]
[1728141197861,2.62125,2408.2,2408.1,7.78187889]
[1728141198258,2.62125,2408.2,2408.1,8.29130494]
[1728141198662,2.62125,2408.2,2408.1,8.00063494]
[1728141199163,2.62125,2408.2,2408.1,3.58636238]
[1728141199954,2.62125,2408.2,2408.1,3.07693633]
[1728141200160,2.62125,2408.2,2408.1,2.53224614]
[1728141200358,2.62125,2408.2,2408.1,1.08955293]
[1728141200560,6.77405,2408.2,2408.1,1.08955293]
[1728141201366,0.29067,2408.1,2408.0,1.08955293]
[1728141201556,0.29067,2408.1,2408.0,2.53223356]
[1728141202660,0.29067,2408.1,2408.0,3.07692375]
[1728141202861,0.29067,2408.1,2408.0,1.44268063]
[1728141203065,0.29067,2408.1,2408.0,3.07692375]
[1728141203267,0.29067,2408.1,2408.0,2.5320458]
[1728141204173,0.29067,2408.1,2408.0,2.53184828]
[1728141205365,0.29067,2408.1,2408.0,2.53172832]
[1728141207270,0.29067,2408.1,2408.0,1.08936517]
[1728141207575,0.29067,2408.1,2408.0,2.5316342]
[1728141207869,0.29067,2408.1,2408.0,1.08936517]
[1728141208878,0.29067,2408.1,2408.0,2.53157479]
[1728141209177,0.29067,2408.1,2408.0,1.08936517]
[1728141209969,0.29067,2408.1,2408.0,2.53153182]
[1728141210469,0.29067,2408.1,2408.0,1.08936517]
[1728141220282,0.29067,2408.1,2407.9,1.38005517]
[1728141220484,1.5,2408.0,2407.9,1.38005517]
[1728141220781,1.5,2408.0,2407.9,2.82182173]
[1728141221886,1.79068,2408.0,2407.9,2.53113173]
[1728141222084,1.79068,2408.0,2407.9,1.08936517]
[1728141222586,1.79068,2408.0,2407.9,2.53115623]
[1728141223277,1.79068,2408.0,2407.9,1.08936517]
[1728141224680,1.79068,2408.0,2407.9,2.53119035]
[1728141224886,1.79068,2408.0,2407.9,1.08936517]
[1728141225275,1.79068,2408.0,2407.8,1.78966517]
[1728141225479,1.79068,2408.0,2407.9,1.08936517]
[1728141225678,1.79068,2408.0,2407.8,1.78966517]
[1728141227082,0.29069,2407.9,2407.8,1.78966517]
[1728141227287,1.79068,2408.0,2407.8,3.23147487]